Cogmind - Beta 17 @@@ ROGUE MODE // 2026.07.26 @ 23:11:13 Player: aperiodic Result: Destroyed by Y-54 Guardian with Gatling Laser Performance ------------- Evolutions (0) 0 Regions Visited (3) 600 Robots Destroyed (50) 250 Value Destroyed (1146) 1146 Prototype IDs (14) 280 Alien Tech Used (0) 0 Bonus (0) 0 TOTAL SCORE: 2276 Bonus ------- None Cogmind --------- Core Integrity 0/250 Matter 217/300 Energy 200/200 System Corruption 0% Temperature Hot (227) Movement Core (1550) Ox30 Location -7/Recycling Parts ------- > --- POWER (1) -------- Subdweller Power Source > --- PROPULSION (2) --- (None) > --- UTILITY (2) ------ Huge Storage Unit Makeshift Light Armor Plating > --- WEAPON (2) ------- Light Assault Rifle Autogun > --- INVENTORY (25) --- Cargo Legs Armored Huge Wheel Maxwheels Hover Unit Flight Unit Xenon Bombardment Thruster Large Storage Unit Hardened Medium Armor Plating Insulated Plating Scrap Shield Self-contained Transmogrifier Subdweller Beam Cannon Multitool Piercing Trap Peak State ------------ > --- POWER ------------ Subdweller Power Source > --- PROPULSION ------- Light Treads Wheel > --- UTILITY ---------- Huge Storage Unit Makeshift Light Armor Plating > --- WEAPON ----------- Subdweller Beam Cannon Improved Light Cannon > --- INVENTORY -------- Cargo Legs Maxwheels Hover Unit Flight Unit Xenon Bombardment Thruster Large Storage Unit Hardened Medium Armor Plating Insulated Plating Scrap Shield Self-contained Transmogrifier Light Assault Rifle Autogun Multitool Piercing Trap [Rating: 21] Favorites ----------- Power Subdweller Power Source Engine Subdweller Power Source Propulsion Light Treads Treads Light Treads Wheel Wheel Utility Scrap Shield Device Improved Heat Sink Storage Large Storage Unit Processor Improved Targeting Computer Protection Scrap Shield Weapon Subdweller Beam Cannon Energy Gun Subdweller Laser Energy Cannon Subdweller Beam Cannon Ballistic Gun Autogun Ballistic Cannon Improved Light Cannon Special Weapon Mining Laser Build | -11 -10 -10 -7 ------- Run | Yrd Mat Sub Rec Slots Evolved . | . . . . Power . | . . . . Propulsion . | . . . . Utility . | . . . . Weapon . | . . . . Parts Attached 39 | 8 13 15 3 Power 6 | 1 2 3 . Engine 6 | 1 2 3 . Core . | . . . . Reactor . | . . . . Propulsion 10 | 3 4 3 . Treads 3 | . 2 1 . Leg . | . . . . Wheel 7 | 3 2 2 . Hover . | . . . . Flight . | . . . . Utility 9 | 2 3 3 1 Device 2 | 1 . 1 . Storage 4 | 1 2 . 1 Processor 1 | . 1 . . Hackware . | . . . . Protection 2 | . . 2 . Artifact . | . . . . Weapon 14 | 2 4 6 2 Energy Gun 3 | 2 . 1 . Energy Cannon 2 | . . 2 . Ballistic Gun 4 | . . 2 2 Ballistic Cannon 4 | . 3 1 . Launcher . | . . . . Special Weapon 1 | . 1 . . Impact Weapon . | . . . . Slashing Weapon . | . . . . Piercing Weapon . | . . . . Special Melee Weapon . | . . . . Unidentified Prototypes . | . . . . Parts Lost 7 | . 2 2 3 Power 1 | . . 1 . Propulsion 4 | . 1 1 2 Utility 1 | . 1 . . Weapon 1 | . . . 1 Highest Loss Streak 3 | . 2 1 3 To Critical Strikes . | . . . . Average Backups 6 | 5 10 5 11 Power . | . 1 . . Propulsion 1 | 2 4 . 4 Utility . | . . . 2 Weapon 2 | 1 4 2 1 Tool/Special . | . . . . Unused Backups 17 | . 2 5 10 Power 1 | . . 1 . Propulsion 8 | . 1 1 6 Utility 2 | . . . 2 Weapon 4 | . 1 3 . Tool/Special 2 | . . . 2 Average Slot Usage (%) 89 | . 97 87 99 Engine 13 | . 14 13 14 Treads 18 | . . 21 13 Wheel 9 | . 27 6 13 Storage 4 | . 14 1 14 Processor 3 | . 9 2 . Protection 10 | . . 11 14 Energy Gun 2 | . 1 3 . Energy Cannon 10 | . . 12 13 Ballistic Gun 8 | . . 10 . Ballistic Cannon 5 | . 26 1 13 Peak Build Rating 21 | 7 12 19 21 Average Rating 13 | 5 10 13 19 On Entrance 9 | . 7 12 19 Avg Prop Armor Cover (%) 7 | . . 6 10 Naked Turns . | . . . . Heaviest Build 101 | 12 33 41 101 Greatest Support 40 | 26 40 40 10 Greatest Overweight (x) 10 | . 1 4 10 Average Overweight (x) 1 | . . . 6 Largest Inventory Capacity 25 | 8 15 15 25 Average Capacity 8 | 6 11 6 21 Most Carried 21 | 8 15 15 21 Average Carried 7 | 5 10 6 17 Final Capacity 25 | 8 15 15 25 Final Carried 20 | 8 15 15 20 Class Distribution -------------------- 58% | Mutant 41% | Subdweller-Mutant Dominant Class ---------------- Mutant | -10/Materials Subdweller-Mutant | -10/Subcaves Mutant | -7/Recycling Resources | -11 -10 -10 -7 ----------- Run | Yrd Mat Sub Rec Matter Collected 1254 | 280 440 524 10 Remotely . | . . . . Salvage Created 1588 | 197 417 857 117 Parts 88 | 9 35 40 4 Haulers Intercepted 2 | . 2 . . Recyclers Shooed . | . . . . Parts Field Recycled . | . . . . Retrieved Matter . | . . . . Parts Self-Destructed 9 | . . 9 . Prevented . | . . . . Parts Restored . | . . . . Kills | -11 -10 -10 -7 ------- Run | Yrd Mat Sub Rec Combat Hostiles Destroyed 32 | . 10 21 1 Guns 15 | . . 15 . Cannons 16 | . 10 5 1 Classes Destroyed 10 | 3 4 2 1 Worker 4 | 1 3 . . Tunneler 6 | 5 1 . . Hauler 2 | . 2 . . Recycler 3 | 1 1 . 1 Watcher 3 | . 3 . . Swarmer 9 | . 6 3 . Grunt 5 | . 4 1 . Sentry 1 | . . . 1 Artisan 1 | . . 1 . Subdweller 17 | . . 17 . Best Kill Streak 5 | 3 5 3 1 Combat Bots Only 3 | . 3 3 1 Max Kills in Single Turn 1 | 1 1 1 1 Gunslinging . | . . . . Exploded . | . . . . Melee . | . . . . Uniques/NPCs Destroyed . | . . . . Combat | -11 -10 -10 -7 -------- Run | Yrd Mat Sub Rec Hostile Shots Fired 241 | . 45 85 111 Missed 55 | . 10 19 26 Hits 186 | . 35 66 85 Projectile 186 | . 35 66 85 AOE 3 | . . 3 . Critical Strikes 1 | . 1 . . Damage Taken 2330 | . 382 1290 658 Core 256 | . 29 173 54 Absorbed by Shields . | . . . . Core Remaining (%) 100 | 100 . . . Volleys Fired 200 | 10 42 130 18 Largest 2 | 2 2 2 2 Hottest 160 | 90 100 160 113 Shots Fired 311 | 20 77 185 29 Gun 181 | 20 . 150 11 Cannon 123 | . 70 35 18 Launcher . | . . . . Special 7 | . 7 . . Kinetic 177 | . 70 86 21 Thermal 134 | 20 7 99 8 Explosive . | . . . . Electromagnetic . | . . . . Robot Hit Streak 20 | 18 19 20 17 Robot Miss Streak 7 | . 7 2 2 Penetration Max . | . . . . Secondary Targets . | . . . . Shots Hit Robots 167 | 18 34 95 20 Core Hits 67 | 8 21 31 7 Critical Kills 1 | . . 1 . Critical Parts Destroyed . | . . . . Critical Strikes 7 | 2 3 2 . Burn 2 | 2 . . . Meltdown 1 | . . 1 . Destroy 1 | . . 1 . Blast 3 | . 3 . . Melee Attacks . | . . . . Impact . | . . . . Slashing . | . . . . Piercing . | . . . . Sneak Attacks . | . . . . Combat Hostiles . | . . . . Follow-up Attacks . | . . . . Damage Inflicted 3039 | 221 790 1654 374 Guns 1497 | 221 . 1168 108 Cannons 1518 | . 766 486 266 Explosions . | . . . . Melee . | . . . . Ramming . | . . . . Kinetic 1999 | . 766 943 290 Thermal 1040 | 221 24 711 84 Explosive . | . . . . Electromagnetic . | . . . . Impact . | . . . . Slashing . | . . . . Piercing . | . . . . Highest Corruption . | . . . . Average Corruption . | . . . . Corruption Purged . | . . . . Corruption Blocked . | . . . . Overload Shots . | . . . . Overflow Damage 6 | . 6 . . Projectiles 6 | . 6 . . Explosions . | . . . . Melee . | . . . . Knockbacks 9 | . 9 . . Impact . | . . . . Kinetic 8 | . 8 . . Secondary 1 | . 1 . . Self-Inflicted Damage . | . . . . Shots . | . . . . Rammed . | . . . . Targets Rammed . | . . . . Kicked . | . . . . Crushed . | . . . . Highest Temperature 241 | 90 144 114 241 Average Temperature 52 | 38 30 27 131 Received Heat Transfer 642 | . 147 297 198 Siege Activations . | . . . . Martial Activations . | . . . . Shielding Activations . | . . . . Robots Disrupted . | . . . . Combat Hostiles . | . . . . Robots Corrupted . | . . . . Combat Hostiles . | . . . . Parts Fried . | . . . . Impact Corruptions . | . . . . Robots Melted 1 | . . 1 . Combat Hostiles 1 | . . 1 . Parts Melted 13 | 7 . 6 . Heat Transferred 1820 | 718 50 941 111 Parts Sabotaged . | . . . . Parts Stolen . | . . . . Parts Stripped . | . . . . Power Chain Reactions . | . . . . Alert | -11 -10 -10 -7 ------- Run | Yrd Mat Sub Rec Maximum Alert Level . | . . . . Low Security (%) 100 | 100 100 . 100 Level 1 . | . . . . Level 2 . | . . . . Level 3 . | . . . . Level 4 . | . . . . Level 5 . | . . . . High Security . | . . . . Max Security . | . . . . Peak Influence 95 | 10 95 . 20 Initial . | . . . . Average 14 | 2 25 . . Influence Increases 491 | 35 336 90 30 Destroy 0b10 Robot/C 300 | . 200 80 20 Destroy 0b10 Robot/NC 90 | 35 50 . 5 Destroy Leader 60 | . 50 10 . Successful Hack 6 | . 6 . . Disable Machine 15 | . 15 . . Destroy Structure 20 | . 15 . 5 Influence Decreases 491 | 35 336 90 30 Time Decay 458 | 35 323 90 10 Lost Part 33 | . 13 . 20 Squads Dispatched . | . . . . Investigation . | . . . . Extermination . | . . . . Reinforcement . | . . . . Assault . | . . . . Garrison . | . . . . Intercept . | . . . . Searches Triggered . | . . . . Construction Impeded . | . . . . Haulers Reinforced . | . . . . Active Scanning Responses . | . . . . Cargo Convoy Interrupts . | . . . . Stealth | -11 -10 -10 -7 --------- Run | Yrd Mat Sub Rec Distress Signals 1 | . 1 . . Communications Jammed . | . . . . Distress Signals . | . . . . Times Spotted 44 | . 20 22 2 Peak Tracking Total 4 | . 4 3 2 Tactical Retreats . | . . . . Traps | -11 -10 -10 -7 ------- Run | Yrd Mat Sub Rec Traps Triggered . | . . . . Indirectly . | . . . . Trap Hack Attempts . | . . . . Triggered . | . . . . Disarmed . | . . . . Reprogrammed . | . . . . Reused . | . . . . Traps Extracted . | . . . . Installed . | . . . . Triggered . | . . . . Most Traps Carried 1 | . . 1 1 Machines | -11 -10 -10 -7 ---------- Run | Yrd Mat Sub Rec Machines Disabled 3 | . 2 1 . Max in Single Turn 2 | . 2 1 . Machines Repaired . | . . . . Machines Dismantled . | . . . . Machines Sabotaged . | . . . . Overloaded Fab Kills . | . . . . Hacking | -11 -10 -10 -7 --------- Run | Yrd Mat Sub Rec Machines Accessed 4 | . 1 3 . Terminals 1 | . 1 . . Fabricators . | . . . . Repair Stations . | . . . . Recycling Units . | . . . . Scanalyzers . | . . . . Garrison Access . | . . . . Total Hacks 4 | . 1 3 . Successful 4 | . 1 3 . Failed . | . . . . Catastrophic . | . . . . Database Lockouts . | . . . . Manual 1 | . 1 . . Terminals 1 | . 1 . . Fabricators . | . . . . Repair Stations . | . . . . Recycling Units . | . . . . Scanalyzers . | . . . . Garrison Access . | . . . . Terminal Hacks 3 | . . 3 . Open Door 1 | . . 1 . Proto ID Catalog 1 | . . 1 . Release Object 1 | . . 1 . Fabricator Hacks . | . . . . Repair Station Hacks . | . . . . Recycling Unit Hacks . | . . . . Scanalyzer . | . . . . Garrison Access Hacks . | . . . . Unauthorized Hacks 1 | . 1 . . Terminals 1 | . 1 . . Assimilate 1 | . 1 . . Fabricators . | . . . . Repair Stations . | . . . . Recycling Units . | . . . . Scanalyzers . | . . . . Garrison Access . | . . . . Data Cores Recovered . | . . . . Used . | . . . . Hacking Detections 1 | . 1 . . Full Trace Events . | . . . . Feedback Events . | . . . . Feedback Blocked . | . . . . Robot Schematics Acquired . | . . . . Robots Built . | . . . . Authchips . | . . . . Time . | . . . . Total Robot Build Rating . | . . . . Part Schematics Acquired . | . . . . Parts Built . | . . . . Authchips . | . . . . Time . | . . . . Total Part Build Rating . | . . . . Part Studies Acquired . | . . . . Parts Repaired . | . . . . Time . | . . . . Parts Recycled . | . . . . Recycled Matter . | . . . . Retrieved Matter . | . . . . Retrieved Components . | . . . . Parts Scanalyzed . | . . . . Part Schematics Acquired . | . . . . Parts Damaged . | . . . . Bothacking | -11 -10 -10 -7 ------------ Run | Yrd Mat Sub Rec Used RIF Installer . | . . . . Robots Hacked . | . . . . Non-combat . | . . . . Combat . | . . . . Robot Hacks Applied . | . . . . Relay Couplers Released . | . . . . Fabnet Peak Effective % . | . . . . Robots Rewired . | . . . . Allies Hacked . | . . . . Hacks Repelled . | . . . . Allies | -11 -10 -10 -7 -------- Run | Yrd Mat Sub Rec Total Allies 1 | . 1 . . Largest Group 1 | . 1 1 1 Highest-Rated Group 10 | . 10 10 10 Highest-Rated Ally 10 | . 10 10 10 Total Orders 11 | . 8 2 1 STAY 6 | . 4 1 1 FOLLOW 5 | . 4 1 . Ally Attacks . | . . . . Total Damage . | . . . . Kills . | . . . . Allies Corrupted . | . . . . Allies Melted . | . . . . Intel | -11 -10 -10 -7 ------- Run | Yrd Mat Sub Rec Active Infowar (turns) 172 | 66 106 . . Seismic 172 | 66 106 . . Robot Analysis Total . | . . . . Derelict Logs Recovered 2 | . . 2 . Drone Launches . | . . . . Drone Recoveries . | . . . . Exploration | -11 -10 -10 -7 ------------- Run | Yrd Mat Sub Rec Turns Passed 9575 | 165 1141 7568 701 Spaces Moved 4803 | 127 964 3363 349 Core 1 | 1 . . . Treads 2721 | . 6 2715 . Legs . | . . . . Wheels 2081 | 126 958 648 349 Hover . | . . . . Flight . | . . . . Fastest Speed 50 | 50 80 80 140 Average Speed 151 | 83 94 167 183 Slowest Speed 240 | 90 160 240 230 Overloaded Moves . | . . . . Propulsion Burnouts . | . . . . Robots Hopped . | . . . . Potential Cave-ins . | . . . . Cave-ins Triggered . | . . . . Exploration Rate (%) 65 | 5 97 81 79 Regions Visited 3 Branch Regions 2 Pre-discovered Areas 1 | . . 1 . Known Exits Taken . | . . . . Unknown Exits Taken 3 | 1 1 1 . Scrap Searched 10 | . . 10 . Spaces Dug 10 | . 4 3 3 Terrain Destroyed 17 | . 9 3 5 Melee . | . . . . Projectile 17 | . 9 3 5 AOE . | . . . . Terrain Rammed . | . . . . Walls Destroyed . | . . . . Machines Disabled . | . . . . Actions | -11 -10 -10 -7 --------- Run | Yrd Mat Sub Rec Total 6794 | 164 1105 5143 382 Wait 1649 | 8 59 1578 4 Move 4800 | 126 963 3362 349 Hop . | . . . . Pick Up 45 | 10 13 16 6 Fast Attach 18 | 6 2 10 . Attach 5 | 1 1 2 1 Detach 2 | . . 2 . Swap 23 | 1 14 6 2 Drop 35 | 2 11 20 2 Fire 200 | 10 42 130 18 Melee . | . . . . Ram . | . . . . Kick . | . . . . Crush . | . . . . Escape Stasis . | . . . . Rewire . | . . . . Trap . | . . . . Miscellaneous 17 | . . 17 . Route ------- -11/Scrapyard -10/Materials (discovered 6 exits: [*Mat x3] / [*Min x2] / *Sub) -10/Subcaves (discovered 3 exits: [*Mat x2] / [*Rec]) -7/Recycling (discovered 1 exit: [*Fac]) History --------- Turn | Location | Event 31 | -11/Scrapyard | Discovered new exit (range 15) 166 | -11/Scrapyard | Entered Materials 261 | -10/Materials | Discovered new exit (range 16) 309 | -10/Materials | Build established: Mutant 501 | -10/Materials | Discovered new exit (range 15) 611 | -10/Materials | Discovered new exit (range 11) 789 | -10/Materials | Discovered new exit (range 12) 975 | -10/Materials | Discovered new exit (range 8) 1296 | -10/Materials | Discovered new exit (range 8) 1307 | -10/Materials | Entered Subcaves 1307 | -10/Subcaves | Accompanied by 1 ally 2396 | -10/Subcaves | Shifting Twisted Machinery released Battle Rifle 2955 | -10/Subcaves | Shifting Twisted Machinery released Piercing Trap 2995 | -10/Subcaves | Learned Materials non-interactive machine intel 3412 | -10/Subcaves | A swath of the cavern ceiling suddenly collapsed 3802 | -10/Subcaves | A swath of the cavern ceiling suddenly collapsed 4231 | -10/Subcaves | Build established: Subdweller-Mutant 4483 | -10/Subcaves | Disturbed a concealed Subdweller 4886 | -10/Subcaves | Visited 4L-MR0's lab 5267 | -10/Subcaves | Shifting Twisted Machinery released Enh. Flamer 5276 | -10/Subcaves | Shifting Twisted Machinery released Shrapnel Trap 5529 | -10/Subcaves | Core integrity fell below 50% 5732 | -10/Subcaves | Ambushed by angry Subdweller bent on revenge 6172 | -10/Subcaves | Shifting Twisted Machinery released Sub. Monowheel 6198 | -10/Subcaves | Shifting Twisted Machinery released Sub. Monowheel 6992 | -10/Subcaves | Discovered new exit (range 12) 7455 | -10/Subcaves | A Subdweller sparked back to life 7459 | -10/Subcaves | Core integrity fell below 20% 7724 | -10/Subcaves | Discovered new exit (range 3) 8030 | -10/Subcaves | Discovered new exit (range 9) 8045 | -10/Subcaves | Found Maxwheels 8060 | -10/Subcaves | Learned location of Zion (-6) 8234 | -10/Subcaves | Build established: Mutant 8297 | -10/Subcaves | Found Cargo Legs 8301 | -10/Subcaves | Found Prototype Device 8875 | -10/Subcaves | Entered Recycling 8875 | -7/Recycling | Accompanied by 1 ally 9115 | -7/Recycling | Discovered new exit (range 16) 9576 | -7/Recycling | Destroyed by Y-54 Guardian with Gatling Laser Last Messages --------------- 09135_ Acquired Hrd. Medium Armor Plating. 09140_ Dropped Lrg. Storage Unit. 09142_ Acquired Lrg. Storage Unit. 09198_ Acquired Insulated Plating. 09213_ Acquired Broken Xenon Bombardment Thruster. 09218_ Acquired 10 matter. 09281_ R-06 Scavenger destroyed. 09297_ R-06 Scavenger collects Tractor Beam. 09322_ Acquired Piercing Trap. 09326_ Acquired Broken Arm. Huge Wheel. 09536_ Y-54 Guardian springs to life. 09545_ Sub. Beam Cannon shoots sparks and powers down. 09558_ Y-54 Guardian destroyed. 09563_ Lgt. Treads destroyed. 09566_ Wheel destroyed. 09566_ R-06 Scavenger collects Lgt. Treads. 09569_ Imp. Light Cannon destroyed. 09570_ R-06 Scavenger collects Imp. Heat Sink. Map ----- +----------------------------------------------------+ | ??????????????????????????????????????? | | ??????????????????????????????????????? | | ??????????????????????????????????????? | | ??????????????????????????????????????? | | ??????????????????????????????????????? | | ??????????????????????????????????????? | | ??????????????????????????????????????? | | ??????????????????????????????????????? | | ????????????????????????????????####### | | ????????????????????????????????# | | ????????????????????????????????# | | ????????????????????????????????# | | ????????????????????????????????# | | ????????????????????????????????# | | ????????????????????????????????# | | ????????????????????????????????# | | ????????????????????????????????# | | ??????????????????????????#?????# | | ???????????????????###### ####### | | ?????????????????? + | | ?????????????????? % ##### | | ????????????????? #???######+ | | ????????????????? #??????# | | ???????????????? #??????# | | ???############# r #??????# | | ???# o@%Y #??????# | | ???# r r #??????# | | ???# % ##### #??????## | | ???# #?????????????# | | ???# #?###+######### | | ???# ##### r #?# # | | ???# #???# + """ + | | ???# #???#r # """ # | | ??##/##### # """ # | | ??# # # """ # | | ??# """ # # "T" """ # | | ??# """ # # # | | ??# """ # ####+#####+## | | ??# # ###??????# | | ??# """ # ????# | | ??# """ # ##### # | | ??# """ # # | | ??# # # | | ??#""" # # | | ??#"Y + # | | ??#""" # # | | ??# ## #%% #### # # | | ??######### #??%#??????# # | | ??????????# #??????????# # | | ????????###+######?????# # | +----------------------------------------------------+ Best States ------------- Heat Dissipation 39 Energy Generation 15 Energy Capacity 250 Matter Stores 300 Matter Capacity 300 Sight Range 16 Terrain Scan Density 10 Armor Coverage 800 Evasion (%) 44 Targeting Accuracy 6 Recoil Reduction 2 Item Schematics ----------------- None Robot Schematics ------------------ None Fabricated ------------ Nothing Repaired ---------- Nothing Studied --------- None Alien Tech Used ----------------- None Achievements -------------- None Challenges ------------ None Game ------ Seed RegenerativePointyTrap Manual? 0 Play Time 01:00:04 Cumulative 779.1 hours Start 2026.07.26 @ 22:09:30 End 2026.07.26 @ 23:11:13 Sessions 1 Manual Loads 0 Difficulty Rogue Special Mode None Game No. 275 Rogue 271 Adventurer 4 Explorer 0 Win Type - Total 21 Types 9/2/6/0/0/0/2/2/0/0 Lore% 88 Gallery% 76 Achievement% 61 Wizard Run 0 Options --------- Layout 1 ASCII 0 Keyboard 0 Movement Arrows Keybinds 0 Fullscreen 1 Font 40/SmallcapsGlow Map View 50x40 Zoom Use 0% Tactical HUD 1 Map Filters NONE Filters NONE Steam 1 RUN: 24489a02-3b2e-41eb-91f5-c4d3d17b8eda